Workbook

Sheet Table rentabilité
B2: ETUDE RENTABILITE SOLUTIONS USAGE PRODUCTIF
B3: Presse à huile_Moulin à mil
B5: investissement réel
B6: investissement optimisé
B7: investissement réel
B10: Cases à vérifier
B11: Cases à compléter
B12: Cases à laisser vides
B13: Cases calculées
B15: Caractéristiques techniques du Projet
F16: 1650000
B17: Usage Productif | C17: Rendement (L,Kg/jour) | D17: Puissance (kW) | F17: Prix (FCFA) | G17: Energie consommée (KWh/j) | H17: Energie à produire (kWh/j) | I17: Fonctionnement optimal | K17: Coefficient déperdition (k)
D18: Max | E18: Nominale | I18: heures par jour | J18: jours à l'année
B19: Presse à huile | C19: 16 | D19: - | E19: 0.31 | F19: =IF(B5=INDEX(B6:B7,1,1),F16,'investissement reél'!E21) -> 2033742 | G19: =E19*I19 -> 3.72 | H19: =E19*I19/K19 -> 4.65 | I19: 12 | J19: 360 | K19: 0.8
B20: Moulin à mil + variateur | C20: =50*$I20 -> 300 | D20: - | E20: 1.8 | F20: 700000 | G20: =E20*I20 -> 10.8 | H20: =E20*I20/K20 -> 13.5 | I20: 6 | J20: 360 | K20: 0.8
D21: - | G21: =E21*I21 -> 0 | H21: =E21*I21/K21 -> 0 | J21: 365 | K21: 0.8
B23: Equipements complémentaires | C23: Puissance (kW) | D23: Nombre | E23: Consommation énergétique (kWh/jour) | F23: Fonctionnement | G23: Prix unitaire (FCFA)
F24: h/jour
B25: Eclairage ( Ampoules LED) | C25: 0.015 | D25: 4 | E25: =C25*F25*D25 -> 0.36 | F25: 6 | G25: 2500
B26: Banc de recharge telephone | C26: 0 | D26: 10 | E26: =C26*F26*D26 -> 0 | F26: 10
B27: Projecteur LED | D27: 1 | G27: 40000
E28: =C28*F28 -> 0 | H28: =0.936+0.36 -> 1.296
B29: Coffret de protection DC | D29: 1 | G29: 46308
B30: Coffret de protection AC | D30: 1 | G30: 2164
B31: Câbles et accessoires et protections | D31: 1 | G31: 399000
B32: transprot equipement | D32: 1 | G32: 550000
B33: Support modules | D33: 1 | G33: 7000
B34: Installation | D34: 1 | G34: 500000
B35: locale technique | D35: 1 | G35: 1000000
B36: demarreur electronique 2,2 KW | D36: 1 | G36: 87648
B37: ensacheuse | D37: 2 | G37: 20000
B38: Box bateries et support | D38: 1 | G38: 0
B39: Monotoring | D39: 1 | E39: - | G39: 0
B41: Alimentation Solaire | C41: Puissance (kW) | D41: Prix (FCFA) | E41: Coefficient déperdition | F41: Tension (V) | H41: Batteries | I41: Capacité (Ampères/h) | J41: Prix (FCFA) | K41: Tension (V) | L41: Durée de vie* | M41: * en conditions optimales, annoncées constructeur
B42: Modules polycristallins 265 | C42: 0.375 | D42: 124000 | E42: 0.6 | F42: 24V | H42: Batterie de 12V, 265 Ah en C40 | I42: 265 | J42: 400000 | K42: 12 | L42: 10
B43: Modules polycristallins 275 | C43: 0.275 | D43: 49800 | F43: 24 | H43: Gel 220Ah 12V | I43: 220 | J43: 223252 | K43: 12 | L43: 10
B44: Tension nécessaire | C44: =IF(J44<0.5,"12V",IF(AND(J44>=0.5,J44<2),"24V",IF(J44>=2,"48V"))) -> 48V | H44: Tension nécessaire batteries | I44: =IF(J44<0.5,12,IF(AND(J44>=0.5,J44<2),24,IF(J44>=2,48))) -> 48 | J44: =F101*INDEX(C:C,MATCH(F75,B:B,0)) -> 3.3
B46: Onduleur | C46: kVa | D46: Prix (FCFA) | H46: Régulateur | I46: tension/courant | J46: Prix (FCFA) | K46: Tension (V)
B47: Onduleur 2KVA | C47: 2 | D47: 333500 | H47: Régulateur Victron Smart bluesolar MPPT 100V ; 50A | I47: 100/50 | J47: 114700 | K47: 12V/24V/48V
B48: Onduleur victron 3KW, 48V | C48: 3 | D48: 425314 | H48: Régulateur Victron Smart bluesolar MPPT 150V ; 85A | I48: 150/85 | J48: 316410 | K48: 12V/24V/48V
B50: Irradiation Solaire
B51: Month | C51: Jan | D51: Feb | E51: Mar | F51: Apr | G51: May | H51: Jun | I51: Jul | J51: Aug | K51: Sep | L51: Oct | M51: Nov | N51: Dec | O51: Year
B52: H(15)* | C52: 5.12 | D52: 5.75 | E52: 6.37 | F52: 6.61 | G52: 6.34 | H52: 6.05 | I52: 6.26 | J52: 5.51 | K52: 6.03 | L52: 5.81 | M52: 5.226 | N52: 5.03 | O52: 6.01
B54: Électricité du réseau | D54: 1ère Tranche | E54: 2ème Tranche | F54: 3ème Tranche | J54: 1ère Tranche | K54: 2ème Tranche | L54: 3ème Tranche | M54: Total
B55: UP-Petite Puissance | C55: Tranche (KWh) | D55: 50 | E55: 500 | F55: ∞ | H55: UP-Petite Puissance | I55: Energie par Tranche | J55: =(F90*30)-SUM(K55:L55) -> 50 | K55: =IF((F90*30)>D55,(F90*30)-D55-L55,0) -> 396.4 | L55: =IF((F90*30)>E55,(F90*30)-E55,0) -> 0 | M55: =SUM(J55:L55) -> 446.4
C56: Prix (KWh) | D56: 128.85 | E56: 135.68 | F56: 147.68 | I56: Coût (FCFA) | J56: =J55*D56 -> 6442.5 | K56: =K55*E56 -> 53783.552 | L56: =L55*F56 -> 0 | M56: =SUM(J56:L56) -> 60226.052
B57: UP-Moyenne Puissance | C57: Tranche | D57: 100 | E57: 500 | F57: ∞ | H57: UP-Moyenne Puissance | I57: Energie par Tranche | J57: =(F90*30)-SUM(K57:L57) -> 100 | K57: =IF((F90*30)>D57,(F90*30)-D57-L57,0) -> 346.4 | L57: =IF((F90*30)>E57,(F90*30)-E57,0) -> 0 | M57: =SUM(J57:L57) -> 446.4
C58: Prix (KWh) | D58: 129.81 | E58: 136.53 | F58: 149.24 | I58: Coût (FCFA) | J58: =J57*D58 -> 12981 | K58: =K57*E58 -> 47293.992 | L58: =L57*F58 -> 0 | M58: =SUM(J58:L58) -> 60274.992
B60: Frais fixes de raccordement | C60: Fixe/Distance | D60: Prix TTC | E60: Étude raccordement
B61: Réseau HTA | C61: Kg câble | D61: 10.000 à 100.000 | E61: 550000
B62: Réseau HTA - Autres Frais | C62: Fixe | D62: 2.000.000 à 7.000.000 | E62: 550000
B63: Transformateur HT/MT - BT | C63: Fixe | D63: 4800000 | E63: 179000
B64: Extension BT* | C64: Distance | D64: 8260 | E64: 179000
B65: Dépend également de la distance de transport des équipements et nombre et type de poteaux non mesurable sauf par Sénélec (approximation)
B68: Choix de dimensionnement du projet
B70: Production huile min. souhaitée presse (L /jour) | F70: =C19 -> 16
B71: Production min. souhaitée moulin(kg /jour) | F71: =C20 -> 300
B73: Choix presse à huiles | F73: Presse à huile
B74: Choix du moulin | F74: Moulin à mil + variateur
B75: Choix de l'alimentation solaire | F75: Modules polycristallins 275
B76: Choix du système de stokage | F76: Gel 220Ah 12V
B77: Choix de l'onduleur | F77: Onduleur victron 3KW, 48V
B78: Choix du régulateur | F78: Régulateur Victron Smart bluesolar MPPT 150V ; 85A
B79: Equivalent Réseau | F79: =IF(M55<M57,B55,B57) -> UP-Moyenne Puissance
B80: Raccordement nécessaire (MT, BT) et distance | F80: MT | G80: 500
B81: Montant Frais HTA et KG câble | F81: 4462549 | G81: 30
B83: Autonomie nécessaires au projet (jours) | F83: 1
B84: Profondeur décharge batteries | F84: 0.8
B86: Choix du cas pour dimensionnement solaire | F86: best case
F87: worst case
F88: average | G88: x
B90: Energie journalière consommée (KWh) | F90: =SUM(E25:E39)+INDEX(G:G,MATCH(F73,B:B,0))+INDEX(G:G,MATCH(F74,B:B,0)) -> 14.88 | G90: KWh
B91: Puissance crête projet (KW) | F91: =(INDEX(H:H,MATCH(F73,B:B,0))+INDEX(H:H,MATCH(F74,B:B,0))+SUM(E25:E39))/O52*F94 -> 3.079866889 | G91: KW
B92: Capacité totale système stockage (Ampères/heure) | F92: =(INDEX(G:G,MATCH(F73,B:B,0))+SUM(E26:E35))*1000*(F83)/(F84*I44) -> 96.875 | G92: Ah
B94: Nombre presse à huile | F94: =ROUNDUP(F70/(C19),0) -> 1 | G94: unités
B95: Nombre de moulin solaire | F95: =ROUNDUP(F71/(C20),0) -> 1
B96: puissance equippement journaliere majoré (KW) | F96: =(SUM(C25:C39)+SUM(E19:E21))*1.2 -> 2.55 | G96: unités
B97: Ampoules LED | F97: =D25 -> 4 | G97: unités
B98: projecteur LED | F98: =D27 -> 1 | G98: unités
B99: Nb ensemble prises | F99: 1 | G99: unités
B100: Nb de variateurs/demarreurs | F100: 1 | G100: unités
B101: Nb de panneaux solaires | F101: =ROUNDUP(F91/INDEX(C:C,MATCH(F75,B:B,0)),0) -> 12 | G101: unités
B102: Nb de batteries en série | F102: =I44/INDEX(K:K,MATCH(F76,H:H,0)) -> 4 | G102: unités
B103: Nb de batteries en dérivation | F103: =ROUNDUP(F92/INDEX(I:I,MATCH(F76,H:H,0)),0) -> 1 | G103: unités
B104: Nb de batteries total | F104: =F102*F103 -> 4 | G104: unités
B105: Durée de vie attendue de la batterie | F105: 7 | G105: ans
B106: Nb régulateurs | F106: =IF(OR(C44=24,C44=12),1,1) -> 1 | G106: unités
B107: Nb onduleurs | F107: =ROUNDUP(F96/INDEX(C:C,MATCH(F77,B:B,0)),0) -> 1 | G107: unités
B109: Ratio de fonctionnement | F109: 0.9
B110: Employés nécessaires pour fonctionnement | F110: 2 | G110: personnes
B111: Extrant annuel attendu en huile | F111: =INDEX(C:C,MATCH($F$73,B:B,0))*INDEX(J:J,MATCH($F$73,B:B,0))*F109*F94 -> 5184 | G111: Litres
B112: Extrant annuel attendu en mouture | F112: =INDEX(C:C,MATCH($F$74,B:B,0))*INDEX(J:J,MATCH($F$74,B:B,0))*F94*F109 -> 97200 | G112: Kilos
B114: Calcul de charges variables et fixes
B116: CHARGES VARIABLES D'EXPLOITATION
B117: Désignation | C117: Quantité | D117: Prix unitaire | E117: Montant mensuel | F117: Montant total/an | H117: évolution annuelle charges d'exploitation | K117: 0.02
B118: achats graines d'arrachide non decortiqués | C118: =(F111/0.45)/12 -> 960 | D118: 400 | E118: =C118*D118 -> 384000 | F118: =E118*12 -> 4608000
B119: bidons vides pour conditionnement | C119: 7 | D119: 25 | E119: =C119*D119*30 -> 5250 | F119: =E119*12 -> 63000 | H119: Avantage coût électricité PV vs. Réseau | J119: Sur 1 an | K119: =((MIN(M58,M56)*12)+IF(F80="MT",(G80*D64)+D63+E61+F81,(G80*D64)))-(SUM(F137:F141,F148)+SUM(G137:G141,G148)) -> 10375948.08
B120: salaires equipe presse | C120: 1 | D120: 30000 | E120: =C120*D120 -> 30000 | F120: =E120*6 -> 180000
B121: salaire equipe moulin | C121: 1 | D121: 30000 | E121: =C121*D121 -> 30000 | F121: =E121*12 -> 360000 | J121: Sur 5 ans | K121: =((MIN(M58,M56)*12*5)+IF(F80="MT",(G80*D64)+D63+E61+F81,(G80*D64)))-(SUM(F137:F141,F148)+(SUM(G137:G141,G148)*5)) -> 11806104.41
B122: achats grains de mil | C122: 15 | D122: 200 | E122: 90000 | F122: 1080000
B123: achats grains de mais | C123: 15 | D123: 175 | E123: 78750 | F123: 945000
B124: achats sachets | C124: 17 | D124: 30 | E124: 15300 | F124: 183600
B125: transport | C125: 1 | D125: 10000 | E125: =C125*D125 -> 10000 | F125: =E125*3 -> 30000
B126: divers (marketing, imprevu | C126: 1 | D126: 0 | E126: 0 | F126: 0 | J126: Sur 10 ans | K126: =((MIN(M58,M56)*12*10)+IF(F80="MT",(G80*D64)+D63+E61+F81,(G80*D64)))-(SUM(F137:F141,F148)+(SUM(G137:G141,G148)*10)) -> 13593799.81
B127: faris de maintenaice/trois mois | C127: 1 | D127: 50000 | E127: =C127*D127/2 -> 25000 | F127: =E127*3 -> 75000
E128: 0 | F128: 0
B129: TOTAL (F CFA) | E129: =SUM(E118:E128) -> 668300 | F129: =SUM(F118:F128) -> 7524600
B131: INVESTISSEMENTS
B132: Désignation | C132: Quantité | D132: Prix unitaire TTC | E132: Durée de vie (an) | F132: Montant Total TTC | G132: Amortissement annuel
B133: Presse à huile | C133: =IF(B5=INDEX(B6:B7,1,1),F94,'investissement reél'!C21) -> 1 | D133: =IF(B5=INDEX(B6:B7,1,1),INDEX(F:F,MATCH(F73,B:B,0)),'investissement reél'!E21) -> 2033742 | E133: 15 | F133: =C133*D133 -> 2033742 | G133: =IFERROR(F133/E133,0) -> 135582.8
B134: moulin solaire + variateur | C134: =IF(B5=INDEX(B6:B7,1,1),F95,'investissement reél'!C23) -> 1 | D134: =IF(B5=INDEX(B6:B7,1,1),INDEX(F:F,MATCH(F74,B:B,0)),'investissement reél'!E23) -> 700000 | E134: 15 | F134: =C134*D134 -> 700000 | G134: 46666.66667
B135: ampoul LED | C135: =IF(B5=INDEX(B6:B7,1,1),F97,'investissement reél'!C19) -> 4 | D135: =IF(B5=INDEX(B6:B7,1,1),G25,'investissement reél'!E19) -> 2500 | E135: 4 | F135: =C135*D135 -> 10000 | G135: 2500
B136: projecteur LED | C136: =IF(B5=INDEX(B6:B7,1,1),F98,'investissement reél'!C22) -> 1 | D136: =IF(B5=INDEX(B6:B7,1,1),G27,'investissement reél'!E22) -> 40000 | E136: 8 | F136: =C136*D136 -> 40000 | G136: 5000
B137: Modules PV | C137: =IF(B5=INDEX(B6:B7,1,1),F101,'investissement reél'!C9) -> 18 | D137: =IF(B5=INDEX(B6:B7,1,1),INDEX(D:D,MATCH(F75,B:B,0)),'investissement reél'!E9) -> 49800 | E137: 25 | F137: 896400 | G137: 35856
B138: Support aluminium | C138: =IF(B5=INDEX(B6:B7,1,1),C137,0) -> 0 | D138: =IF(B5=INDEX(B6:B7,1,1),G33,0) -> 0 | F138: 0 | G138: 0
B139: Batterie | C139: =IF(B5=INDEX(B6:B7,1,1),F104,'investissement reél'!C10) -> 8 | D139: =IF(B5=INDEX(B6:B7,1,1),INDEX(J:J,MATCH(F76,H:H,0)),'investissement reél'!E10) -> 223252 | E139: =F105 -> 7 | F139: 1786016 | G139: 255145.1429
B140: Régulateur | C140: =IF(B5=INDEX(B6:B7,1,1),F106,'investissement reél'!C11) -> 1 | D140: =IF(B5=INDEX(B6:B7,1,1),INDEX(J:J,MATCH(F78,H:H,0)),'investissement reél'!E11) -> 316410 | E140: 10 | F140: 316410 | G140: 31641
B141: Onduleur chargeur | C141: =IF(B5=INDEX(B6:B7,1,1),F107,'investissement reél'!C12) -> 1 | D141: =IF(B5=INDEX(B6:B7,1,1),INDEX(D:D,MATCH(F77,B:B,0)),'investissement reél'!E12) -> 425314 | E141: 10 | F141: 425314 | G141: 42531.4
B142: Demmareur | C142: =IF(B5=INDEX(B6:B7,1,1),F100,'investissement reél'!C15) -> 1 | D142: =IF(B5=INDEX(B6:B7,1,1),G36,'investissement reél'!E15) -> 87648 | E142: 10 | F142: 87648 | G142: 8764.8
B143: Ensemble prise téléphones | C143: 0 | F143: 0 | G143: 0
B144: Coffret de protection DC | C144: =IF(B5=INDEX(B6:B7,1,1),D29,'investissement reél'!C13) -> 1 | D144: =IF(B5=INDEX(B6:B7,1,1),G29,'investissement reél'!E13) -> 46308 | E144: 10 | F144: 46308 | G144: 4630.8
B145: Coffret de protection AC | C145: =IF(B5=INDEX(B6:B7,1,1),D30,'investissement reél'!C14) -> 1 | D145: =IF(B5=INDEX(B6:B7,1,1),G30,'investissement reél'!E14) -> 2164 | E145: 10 | F145: =C145*D145 -> 2164 | G145: 216.4
B146: Câbles et accessoires et protections | C146: =IF(B5=INDEX(B6:B7,1,1),D31,'investissement reél'!C16) -> 1 | D146: =IF(B5=INDEX(B6:B7,1,1),G31,'investissement reél'!E16) -> 399000 | E146: 20 | F146: 399000 | G146: 19950
B147: transprot equipement | C147: =IF(B5=INDEX(B6:B7,1,1),D32,'investissement reél'!C25) -> 1 | D147: =IF(B5=INDEX(B6:B7,1,1),G32,'investissement reél'!E25) -> 550000 | E147: - | F147: 550000 | G147: 0
B148: Installation | C148: =IF(B5=INDEX(B6:B7,1,1),D34,'investissement reél'!C18) -> 1 | D148: =IF(B5=INDEX(B6:B7,1,1),G34,'investissement reél'!E18) -> 500000 | E148: 0 | F148: 500000 | G148: 0
B149: locale technique | C149: =IF(B5=INDEX(B6:B7,1,1),D35,'investissement reél'!C26) -> 1 | D149: =IF(B5=INDEX(B6:B7,1,1),G35,'investissement reél'!E26) -> 1000000 | E149: 30 | F149: 1000000 | G149: 33333.33333
B150: Monotoring | C150: =IF(B5=INDEX(B6:B7,1,1),D39,'investissement reél'!C24) -> 1 | D150: =IF(B5=INDEX(B6:B7,1,1),G39,'investissement reél'!E24) -> 694127 | F150: 694127 | G150: 0
B151: ensacheuses | C151: =IF(B5=INDEX(B6:B7,1,1),D37,'investissement reél'!C20) -> 2 | D151: =IF(B5=INDEX(B6:B7,1,1),G37,'investissement reél'!E20) -> 20000 | E151: 10 | F151: 40000 | G151: 4000
B152: BOX batteries et SOPPORTES | C152: =IF(B5=INDEX(B6:B7,1,1),D38,'investissement reél'!C17) -> 1 | D152: =IF(B5=INDEX(B6:B7,1,1),G38,'investissement reél'!E17) -> 200000 | E152: 20 | F152: 200000 | G152: 10000
B153: TOTAL (F CFA) | F153: =SUM(F133:F152) -> 9727129 | G153: =SUM(G133:G152) -> 635818.3429
B155: Calcul des recettes d'exploitation
B157: RECETTES D'EXPLOITATION
B158: Désignation | C158: Quantité | D158: Prix unitare | E158: Recettes annuelles | F158: Recettes mensuelles | H158: évolution annuelle recettes d'exploitation | K158: 0.02
B159: ventes d'huiles d'arrachides(L) | C159: =F111 -> 5184 | D159: 1100 | E159: =C159*D159 -> 5702400 | F159: =E159/12 -> 475200
B160: ventes de tourteaux (kG) | C160: =C118*0.55*12 -> 6336 | D160: 200 | E160: =C160*D160 -> 1267200 | F160: =E160/12 -> 105600
B161: prestation huile | C161: =16*30*12 -> 5760 | D161: 200 | E161: =C161*D161 -> 1152000 | F161: =E161/12 -> 96000
B162: prestation mouture mil, mais | C162: =F112 -> 97200 | D162: 25 | E162: =C162*D162 -> 2430000 | F162: 202500
B163: ventes cereales locales | C163: =(C123+C122*90%)*30*12 -> 10260 | D163: 500 | E163: =C163*D163 -> 5130000 | F163: 427500
B164: TOTAL (F CFA) | E164: =SUM(E159:E163) -> 15681600 | F164: =SUM(F159:F163) -> 1306800
B166: Ressources et Financement des investissements
B168: BFR (Besoin en fonds de roulement)
B169: Type de tiers | C169: Client/fournisseur | D169: Délais de paiement / stocks (jours) | E169: Part des achats/ventes
C170: founisseur | D170: 0 | E170: 1
C171: client | D171: 0 | E171: 1
B173: Créances clients | C173: =((D171*F164/365*E171)) -> 0
B174: Crédit fournisseurs | C174: =(D170*F129*E170/365)*-1 -> 0
B175: Impact Stocks consommable | C175: 0
B176: Impact Stocks produits finis | C176: 0
B177: BFR | C177: =F118 -> 4608000 | D177: F CFA
B180: SCHÉMA DE FINANCEMENT | F180: ECHEANCIER DE REMBOURSEMENT
B181: Désignation | C181: Part | D181: Montant total TTC | F181: Année | G181: Capital | H181: Intérêts | I181: Reste | J181: Annuité | K181: mensualité
B182: Investissements | D182: =F153 -> 9727129 | F182: =IF(D189>10,"nb an insuffisant",IF(D189>=1,1,"-")) -> 1 | G182: =SUMIFS('Remboursement Mensualités'!C$14:C$133,'Remboursement Mensualités'!$F$14:$F$133,'Table rentabilité'!$F182) -> 6213237.862 | H182: =SUMIFS('Remboursement Mensualités'!D$14:D$133,'Remboursement Mensualités'!$F$14:$F$133,'Table rentabilité'!$F182) -> 681785.0389 | I182: =SUMIFS('Remboursement Mensualités'!E$14:E$133,'Remboursement Mensualités'!$F$14:$F$133,'Table rentabilité'!$F182) -> 114368210.3 | J182: =SUMIFS('Remboursement Mensualités'!B$14:B$133,'Remboursement Mensualités'!$F$14:$F$133,'Table rentabilité'!$F182) -> 6895022.901 | K182: =J182/12 -> 574585.2417
B183: Besoin en fonds de roulement | D183: =C177 -> 4608000 | F183: =IF(D189>10,"nb an insuffisant",IF(D189>=2,2,"-")) -> 2 | G183: =SUMIFS('Remboursement Mensualités'!C$14:C$133,'Remboursement Mensualités'!$F$14:$F$133,'Table rentabilité'!$F183) -> 6648164.512 | H183: =SUMIFS('Remboursement Mensualités'!D$14:D$133,'Remboursement Mensualités'!$F$14:$F$133,'Table rentabilité'!$F183) -> 246858.3886 | I183: =SUMIFS('Remboursement Mensualités'!E$14:E$133,'Remboursement Mensualités'!$F$14:$F$133,'Table rentabilité'!$F183) -> 37011552.68 | J183: =SUMIFS('Remboursement Mensualités'!B$14:B$133,'Remboursement Mensualités'!$F$14:$F$133,'Table rentabilité'!$F183) -> 6895022.901 | K183: =J183/12 -> 574585.2417
B184: COÛT TOTAL (F CFA) | D184: =SUM(D182:D183) -> 14335129 | F184: =IF(D189>10,"nb an insuffisant",IF(D189>=3,3,"-")) -> - | G184: =SUMIFS('Remboursement Mensualités'!C$14:C$133,'Remboursement Mensualités'!$F$14:$F$133,'Table rentabilité'!$F184) -> 0 | H184: =SUMIFS('Remboursement Mensualités'!D$14:D$133,'Remboursement Mensualités'!$F$14:$F$133,'Table rentabilité'!$F184) -> 0 | I184: =SUMIFS('Remboursement Mensualités'!E$14:E$133,'Remboursement Mensualités'!$F$14:$F$133,'Table rentabilité'!$F184) -> 0 | J184: =SUMIFS('Remboursement Mensualités'!B$14:B$133,'Remboursement Mensualités'!$F$14:$F$133,'Table rentabilité'!$F184) -> 0 | K184: 0
B185: Apport personnel | C185: =D185/F153 -> 0.1028052573 | D185: =F149 -> 1000000 | F185: =IF(D189>10,"nb an insuffisant",IF(D189>=4,4,"-")) -> - | G185: =SUMIFS('Remboursement Mensualités'!C$14:C$133,'Remboursement Mensualités'!$F$14:$F$133,'Table rentabilité'!$F185) -> 0 | H185: =SUMIFS('Remboursement Mensualités'!D$14:D$133,'Remboursement Mensualités'!$F$14:$F$133,'Table rentabilité'!$F185) -> 0 | I185: =SUMIFS('Remboursement Mensualités'!E$14:E$133,'Remboursement Mensualités'!$F$14:$F$133,'Table rentabilité'!$F185) -> 0 | J185: =SUMIFS('Remboursement Mensualités'!B$14:B$133,'Remboursement Mensualités'!$F$14:$F$133,'Table rentabilité'!$F185) -> 0 | K185: 0
B186: Subvention | C186: 0 | D186: =C186*D184 -> 0 | F186: =IF(D189>10,"nb an insuffisant",IF(D189>=5,5,"-")) -> - | G186: =SUMIFS('Remboursement Mensualités'!C$14:C$133,'Remboursement Mensualités'!$F$14:$F$133,'Table rentabilité'!$F186) -> 0 | H186: =SUMIFS('Remboursement Mensualités'!D$14:D$133,'Remboursement Mensualités'!$F$14:$F$133,'Table rentabilité'!$F186) -> 0 | I186: =SUMIFS('Remboursement Mensualités'!E$14:E$133,'Remboursement Mensualités'!$F$14:$F$133,'Table rentabilité'!$F186) -> 0 | J186: =SUMIFS('Remboursement Mensualités'!B$14:B$133,'Remboursement Mensualités'!$F$14:$F$133,'Table rentabilité'!$F186) -> 0 | K186: 0
B187: Emprunt | C187: =100%-(C186+C185) -> 0.8971947427 | D187: =D184*C187 -> 12861402.37 | F187: =IF(D189>10,"nb an insuffisant",IF(D189>=6,6,"-")) -> - | G187: =SUMIFS('Remboursement Mensualités'!C$14:C$133,'Remboursement Mensualités'!$F$14:$F$133,'Table rentabilité'!$F187) -> 0 | H187: =SUMIFS('Remboursement Mensualités'!D$14:D$133,'Remboursement Mensualités'!$F$14:$F$133,'Table rentabilité'!$F187) -> 0 | I187: =SUMIFS('Remboursement Mensualités'!E$14:E$133,'Remboursement Mensualités'!$F$14:$F$133,'Table rentabilité'!$F187) -> 0 | J187: =SUMIFS('Remboursement Mensualités'!B$14:B$133,'Remboursement Mensualités'!$F$14:$F$133,'Table rentabilité'!$F187) -> 0 | K187: 0
B188: Taux de l'emprunt | D188: 0.07 | F188: =IF(D189>10,"nb an insuffisant",IF(D189>=7,7,"-")) -> - | G188: =SUMIFS('Remboursement Mensualités'!C$14:C$133,'Remboursement Mensualités'!$F$14:$F$133,'Table rentabilité'!$F188) -> 0 | H188: =SUMIFS('Remboursement Mensualités'!D$14:D$133,'Remboursement Mensualités'!$F$14:$F$133,'Table rentabilité'!$F188) -> 0 | I188: =SUMIFS('Remboursement Mensualités'!E$14:E$133,'Remboursement Mensualités'!$F$14:$F$133,'Table rentabilité'!$F188) -> 0 | J188: =SUMIFS('Remboursement Mensualités'!B$14:B$133,'Remboursement Mensualités'!$F$14:$F$133,'Table rentabilité'!$F188) -> 0 | K188: 0
B189: Remboursement de l'emprunt (années) | D189: 2 | F189: =IF(D189>10,"nb an insuffisant",IF(D189>=8,8,"-")) -> - | G189: =SUMIFS('Remboursement Mensualités'!C$14:C$133,'Remboursement Mensualités'!$F$14:$F$133,'Table rentabilité'!$F189) -> 0 | H189: =SUMIFS('Remboursement Mensualités'!D$14:D$133,'Remboursement Mensualités'!$F$14:$F$133,'Table rentabilité'!$F189) -> 0 | I189: =SUMIFS('Remboursement Mensualités'!E$14:E$133,'Remboursement Mensualités'!$F$14:$F$133,'Table rentabilité'!$F189) -> 0 | J189: =SUMIFS('Remboursement Mensualités'!B$14:B$133,'Remboursement Mensualités'!$F$14:$F$133,'Table rentabilité'!$F189) -> 0 | K189: 0
F190: =IF(D189>10,"nb an insuffisant",IF(D189>=9,9,"-")) -> - | G190: =SUMIFS('Remboursement Mensualités'!C$14:C$133,'Remboursement Mensualités'!$F$14:$F$133,'Table rentabilité'!$F190) -> 0 | H190: =SUMIFS('Remboursement Mensualités'!D$14:D$133,'Remboursement Mensualités'!$F$14:$F$133,'Table rentabilité'!$F190) -> 0 | I190: =SUMIFS('Remboursement Mensualités'!E$14:E$133,'Remboursement Mensualités'!$F$14:$F$133,'Table rentabilité'!$F190) -> 0 | J190: =SUMIFS('Remboursement Mensualités'!B$14:B$133,'Remboursement Mensualités'!$F$14:$F$133,'Table rentabilité'!$F190) -> 0 | K190: 0
F191: =IF(D189>10,"nb an insuffisant",IF(D189>=10,"Année 10","-")) -> - | G191: =SUMIFS('Remboursement Mensualités'!C$14:C$133,'Remboursement Mensualités'!$F$14:$F$133,'Table rentabilité'!$F191) -> 0 | H191: =SUMIFS('Remboursement Mensualités'!D$14:D$133,'Remboursement Mensualités'!$F$14:$F$133,'Table rentabilité'!$F191) -> 0 | I191: =SUMIFS('Remboursement Mensualités'!E$14:E$133,'Remboursement Mensualités'!$F$14:$F$133,'Table rentabilité'!$F191) -> 0 | J191: =SUMIFS('Remboursement Mensualités'!B$14:B$133,'Remboursement Mensualités'!$F$14:$F$133,'Table rentabilité'!$F191) -> 0 | K191: 0
F192: TOTAL | G192: =SUM(G182:G191) -> 12861402.37 | H192: =SUM(H182:H191) -> 928643.4275 | J192: =SUM(J182:J191) -> 13790045.8
B195: Ressources et Financement des investissements
B197: RESULTAT BRUT D'EXPLOITATION (EBE)
B198: Désignation / Durée (années) | C198: 0 | D198: 1 | E198: 2 | F198: 3 | G198: 4 | H198: 5 | I198: 6 | J198: 7 | K198: 8 | L198: 9 | M198: Total
B199: Recettes | D199: =E164 -> 15681600 | E199: =D199+($K$158*D199) -> 15995232 | F199: 16315136.64 | G199: 16641439.37 | H199: 16974268.16 | I199: 17313753.52 | J199: 17660028.59 | K199: 18013229.17 | L199: 18373493.75 | M199: =SUM(C199:L199) -> 152968181.2
B200: Dépenses | D200: =F129 -> 7524600 | E200: =D200+($K$117*D200) -> 7675092 | F200: =E200+($K$117*E200) -> 7828593.84 | G200: 7985165.717 | H200: 8144869.031 | I200: 8307766.412 | J200: 8473921.74 | K200: 8643400.175 | L200: 8816268.178 | M200: 73399677.09
B201: Amortissements | C201: 0 | D201: =$G$153 -> 635818.3429 | E201: =$G$153 -> 635818.3429 | F201: 635818.3429 | G201: 635818.3429 | H201: 635818.3429 | I201: 635818.3429 | J201: 635818.3429 | K201: 635818.3429 | L201: 635818.3429 | M201: 5722365.086
B202: Remboursement emprunt | C202: 0 | D202: =IFERROR(INDEX($J$182:$J$191,MATCH(D198,$F$182:$F$191,0)),0) -> 6895022.901 | E202: =IFERROR(INDEX($J$182:$J$191,MATCH(E198,$F$182:$F$191,0)),0) -> 6895022.901 | F202: 0 | G202: 0 | H202: 0 | I202: 0 | J202: 0 | K202: 0 | L202: 0 | M202: 13790045.8
B203: Bénéfice avant impôts (EBITDA) | C203: 0 | D203: =D199-SUM(D200:D202) -> 626158.7563 | E203: 789298.7563 | F203: 7850724.457 | G203: 8020455.313 | H203: 8193580.786 | I203: 8370168.769 | J203: 8550288.511 | K203: 8734010.648 | L203: 8921407.228 | M203: 60056093.23
B204: Impôts sur le bénéfice | C204: 0 | D204: =IF(D203<0,0,0.3*D203) -> 187847.6269 | E204: 236789.6269 | F204: 2355217.337 | G204: 2406136.594 | H204: 2458074.236 | I204: 2511050.631 | J204: 2565086.553 | K204: 2620203.194 | L204: 2676422.168 | M204: 18016827.97
B205: Bénéfice après impôts | C205: 0 | D205: =D203-D204 -> 438311.1294 | E205: 552509.1294 | F205: 5495507.12 | G205: 5614318.719 | H205: 5735506.55 | I205: 5859118.138 | J205: 5985201.958 | K205: 6113807.454 | L205: 6244985.06 | M205: 42039265.26
B206: Trésorerie | C206: =C199-C200 -> 0 | D206: =C206+D205 -> 438311.1294 | E206: 990820.2588 | F206: 6486327.379 | G206: 12100646.1 | H206: 17836152.65 | I206: 23695270.79 | J206: 29680472.74 | K206: 35794280.2 | L206: 42039265.26
B207: Cash Flows | C207: 0 | D207: =D205+D202-($H$192/$D$189) -> 6869012.317 | E207: 6983210.317 | F207: 5031185.406 | G207: 5149997.005 | H207: 5271184.837 | I207: 5394796.424 | J207: 5520880.244 | K207: 5649485.74 | L207: 5780663.346
B208: Cash Flows cumulés | C208: =-C200 -> 0 | D208: =C208+D207 -> 6869012.317 | E208: 13852222.63 | F208: 18883408.04 | G208: 24033405.04 | H208: 29304589.88 | I208: 34699386.31 | J208: 40220266.55 | K208: 45869752.29 | L208: 51650415.64
B211: Indicateurs économiques
B213: VAN | C213: =NPV(F213,IF(D198<=H213,D207,0),IF(E198<=H213,E207,0),IF(F198<=H213,F207,0),IF(G198<=H213,G207,0),IF(H198<=H213,H207,0),IF(I198<=H213,I207,0),IF(J198<=H213,J207,0),IF(K198<=H213,K207,0),IF(L198<=H213,L207,0))-D182 -> 31361246.88 | D213: FCFA | E213: Taux d'actualisation | F213: 0.05 | G213: Durée VAN (ans) | H213: 9 | N213: =-D182+IF(H213>=D198,(D205+D202-H192/D189)*((1+F213)^-1),0)+IF(H213>=E198,(E205+E202-H192/D189)*((1+F213)^-2),0)+IF(H213>=F198,(F205+F202-H192/D189)*((1+F213)^-3),0)+IF(H213>=G198,(G205+G202-H192/D189)*((1+F213)^-4),0)+IF(H213>=H198,(H205+H202-H192/D189)*((1+F213)^-5),0)+IF(H213>=I198,(I205+I202-H192/D189)*((1+F213)^-6),0)+IF(H213>=J198,(J205+J202-H192/D189)*((1+F213)^-7),0)+IF(H213>=K198,(K205+K202-H192/D189)*((1+F213)^-8),0)+IF(H213>=L198,(L205+L202-H192/D189)*((1+F213)^-9),0) -> 31361246.88 | O213: calcul VAN
B214: TRI | C214: =IRR(N214:W214) -> 0.6385361831 | N214: =-D182 -> -9727129 | O214: =IF(D198<=H213,D207,0) -> 6869012.317 | P214: =IF(E198<=H213,E207,0) -> 6983210.317 | Q214: =IF(F198<=H213,F207,0) -> 5031185.406 | R214: =IF(G198<=H213,G207,0) -> 5149997.005 | S214: =IF(H198<=H213,H207,0) -> 5271184.837 | T214: =IF(I198<=H213,I207,0) -> 5394796.424 | U214: =IF(J198<=H213,J207,0) -> 5520880.244 | V214: =IF(K198<=H213,K207,0) -> 5649485.74 | W214: =IF(L198<=H213,L207,0) -> 5780663.346
B215: IPI | C215: =SUM(O214:W214)/D182 -> 5.309934271 | D215: ="Pour 1000 CFA investis, on récupère "&ROUND(N215,0)&" CFA" -> Pour 1000 CFA investis, on récupère 4310 CFA | N215: =(C215-1)*1000 -> 4309.934271
B216: DCRI | C216: =N216+(-P216/(O216-P216)) ->  | D216: ="Le délai de récupération est de "&ROUNDDOWN(C216,0)&" ans et "&ROUNDDOWN((C216-ROUNDDOWN(C216,0))*12,0)&" mois" ->  | N216: =IF(AND(L208<0,L198<=H213),L198,IF(AND(K208<0,K198<=H213),K198,IF(AND(J208<0,J198<=H213),J198,IF(AND(I208<0,I198<=H213),I198,IF(AND(H208<0,H198<=H213),H198,IF(AND(G208<0,G198<=H213),G198,IF(AND(F208<0,F198<=H213),F198,IF(AND(E208<0,E198<=H213),E198,IF(AND(D208<0,D198<=H213),D198,IF(AND(C208<0,C198<=H213),C198)))))))))) -> FALSE | O216: =INDEX(C208:L208,MATCH(INDEX(C198:L198,MATCH(P216,C208:L208,0))+1,C198:L198,0)) ->  | P216: =IF(AND(L208<0,L198<=H213),L208,IF(AND(K208<0,K198<=H213),K208,IF(AND(J208<0,J198<=H213),J208,IF(AND(I208<0,I198<=H213),I208,IF(AND(H208<0,H198<=H213),H208,IF(AND(G208<0,G198<=H213),G208,IF(AND(F208<0,F198<=H213),F208,IF(AND(E208<0,E198<=H213),E208,IF(AND(D208<0,D198<=H213),D208,IF(AND(C208<0,C198<=H213),C208)))))))))) -> FALSE
B217: DSCR | C217: =(D199-D200)/(D202) -> 1.183027253

Sheet Remboursement Mensualités (hidden)
A1: Remboursement de prêt
A2: Taux annuel | B2: ='Table rentabilité'!D188 -> 0.07
A3: Capital emprunté | B3: ='Table rentabilité'!D187 -> 12861402.37
A4: Durée du prêt (en année) | B4: ='Table rentabilité'!D189 -> 2 | C4: =B4*12 -> 24
A5: Mensualité à régler | B5: =-PMT((1+B2)^(1/12)-1,B4*12,B3) -> 574585.2417 | C5: Formule mensualité | D5: =-VPM((1+B2)^(1/12)-1;B4*12;B3)
A7: Décomposition de la mensualité
A8: Remboursement du principal | B8: =-PPMT((1+B2)^(1/12)-1,1,B4*12,B3) -> 501865.0028 | C8: Formule principal | D8: =-PRINCPER((1+B2)^(1/12)-1;1;B4*12;B3)
A9: Remboursement des interêts | B9: =-IPMT((1+B2)^(1/12)-1,1,B4*12,B3) -> 72720.23891 | C9: Formule intérêt | D9: =-INTPER((1+B2)^(1/12)-1;1;B4*12;B3)
A12: Dans les formules ci-dessous Taux de période = TP = (1+$B$2)^(1/12)-1
A13: Périodes | B13: Mensualité | C13: Capital | D13: Intérêts | E13: Reste (ou résiduel) | F13: Années
A14: =IF(B4<>0,1,"-") -> 1 | B14: =IF(A14<>"-",C14+D14,"") -> 574585.2417 | C14: =IF(A14<>"-",-PPMT((1+$B$2)^(1/12)-1,A14,$B$4*12,$B$3),"") -> 501865.0028 | D14: =IF(A14<>"-",-IPMT((1+$B$2)^(1/12)-1,A14,$B$4*12,$B$3),"") -> 72720.23891 | E14: =IF(A14<>"-",$B$3+CUMPRINC((1+$B$2)^(1/12)-1,$B$4*12,$B$3,1,A14,0),"") -> 12359537.37 | F14: =IF(A14<>"-",1,"") -> 1 | G14: =IF(A14<>"-",1,"") -> 1
A15: =IF(AND($B$4<>0,A14<$C$4),A14+1,"-") -> 2 | B15: 574585.2417 | C15: 504702.6205 | D15: 69882.62122 | E15: 11854834.75 | F15: =IF(A15<>"-",IF(G14<G15,F14,F14+1),"") -> 1 | G15: =IF(A15="-","",IF(G14<12,G14+1,1)) -> 2
A16: 3 | B16: 574585.2417 | C16: 507556.2825 | D16: 67028.95922 | E16: 11347278.47 | F16: 1 | G16: 3
A17: 4 | B17: 574585.2417 | C17: 510426.0795 | D17: 64159.16221 | E17: 10836852.39 | F17: 1 | G17: 4
A18: 5 | B18: 574585.2417 | C18: 513312.1028 | D18: 61273.13895 | E18: 10323540.29 | F18: 1 | G18: 5
A19: 6 | B19: 574585.2417 | C19: 516214.444 | D19: 58370.79769 | E19: 9807325.842 | F19: 1 | G19: 6
A20: 7 | B20: 574585.2417 | C20: 519133.1956 | D20: 55452.04617 | E20: 9288192.646 | F20: 1 | G20: 7
A21: 8 | B21: 574585.2417 | C21: 522068.4501 | D21: 52516.79161 | E21: 8766124.196 | F21: 1 | G21: 8
A22: 9 | B22: 574585.2417 | C22: 525020.301 | D22: 49564.94069 | E22: 8241103.895 | F22: 1 | G22: 9
A23: 10 | B23: 574585.2417 | C23: 527988.8422 | D23: 46596.39958 | E23: 7713115.053 | F23: 1 | G23: 10
A24: 11 | B24: 574585.2417 | C24: 530974.1678 | D24: 43611.0739 | E24: 7182140.885 | F24: 1 | G24: 11
A25: 12 | B25: 574585.2417 | C25: 533976.373 | D25: 40608.86876 | E25: 6648164.512 | F25: 1 | G25: 12
A26: 13 | B26: 574585.2417 | C26: 536995.553 | D26: 37589.68871 | E26: 6111168.959 | F26: 2 | G26: 1
A27: 14 | B27: 574585.2417 | C27: 540031.804 | D27: 34553.43778 | E27: 5571137.155 | F27: 2 | G27: 2
A28: 15 | B28: 574585.2417 | C28: 543085.2223 | D28: 31500.01945 | E28: 5028051.933 | F28: 2 | G28: 3
A29: 16 | B29: 574585.2417 | C29: 546155.9051 | D29: 28429.33664 | E29: 4481896.028 | F29: 2 | G29: 4
A30: 17 | B30: 574585.2417 | C30: 549243.95 | D30: 25341.29175 | E30: 3932652.078 | F30: 2 | G30: 5
A31: 18 | B31: 574585.2417 | C31: 552349.4551 | D31: 22235.78661 | E31: 3380302.623 | F31: 2 | G31: 6
A32: 19 | B32: 574585.2417 | C32: 555472.5193 | D32: 19112.72248 | E32: 2824830.104 | F32: 2 | G32: 7
A33: 20 | B33: 574585.2417 | C33: 558613.2416 | D33: 15972.0001 | E33: 2266216.862 | F33: 2 | G33: 8
A34: 21 | B34: 574585.2417 | C34: 561771.7221 | D34: 12813.51962 | E34: 1704445.14 | F34: 2 | G34: 9
A35: 22 | B35: 574585.2417 | C35: 564948.0611 | D35: 9637.180625 | E35: 1139497.079 | F35: 2 | G35: 10
A36: 23 | B36: 574585.2417 | C36: 568142.3596 | D36: 6442.882151 | E36: 571354.7191 | F36: 2 | G36: 11
A37: 24 | B37: 574585.2417 | C37: 571354.7191 | D37: 3230.522649 | E37: -1.862645149e-09 | F37: 2 | G37: 12
A38: -
A39: -
A40: -
A41: -
A42: -
A43: -
A44: -
A45: -
A46: -
A47: -
A48: -
A49: -
A50: -
A51: -
A52: -
A53: -
A54: -
A55: -
A56: -
A57: -
A58: -
A59: -
A60: -
A61: -
A62: -
A63: -
A64: -
A65: -
A66: -
A67: -
A68: -
A69: -
A70: -
A71: -
A72: -
A73: -
A74: -
A75: -
A76: -
A77: -
A78: -
A79: -
A80: -
A81: -
A82: -
A83: -
A84: -
A85: -
A86: -
A87: -
A88: -
A89: -
A90: -
A91: -
A92: -
A93: -
A94: -
A95: -
A96: -
A97: -
A98: -
A99: -
A100: -
A101: -
A102: -
A103: -
A104: -
A105: -
A106: -
A107: -
A108: -
A109: -
A110: -
A111: -
A112: -
A113: -
A114: -
A115: -
A116: -
A117: -
A118: -
A119: -
A120: -
A121: -
A122: -
A123: -
A124: -
A125: -
A126: -
A127: -
A128: -
A129: -
A130: -
A131: -
A132: -
A133: -

Sheet investissement reél
B5: Investissement (CAPEX)
B7: Désignation | C7: Quantité | E7: P.U. (en Fcfa) | F7: P.T. (en Fcfa) | G7: Durée de vie | H7: Amortissement Annuel
C8: Quantité | D8: Unité
B9: Modules photovoltaïque de 275 Wc et support ; (9,31A ; 39,08V) | C9: 18 | D9: u | E9: 49800 | F9: =C9*E9 -> 896400 | G9: 25 | H9: =F9/G9 -> 35856
B10: Batterie de 12V, 220 Ah en C40 et support | C10: 8 | D10: u | E10: 223252 | F10: =C10*E10 -> 1786016 | G10: 7 | H10: =F10/G10 -> 255145.1429
B11: Régulateur Victron Smart bluesolar MPPT 150V ; 85A | C11: 1 | D11: u | E11: 316410 | F11: =E11*C11 -> 316410 | G11: 10 | H11: =F11/G11 -> 31641
B12: Onduleur VICTRON (48V ; 3000W) | C12: 1 | D12: u | E12: 425314 | F12: 425314 | G12: 10 | H12: 42531.4
B13: Coffret de protection DC ( 3 disjoncteurs DC 100A + Parafoudre DC class 2) | C13: 1 | D13: ens | E13: 46308 | F13: 46308 | G13: 10 | H13: 4630.8
B14: Coffret de protection AC (1 disjoncteur AC 20A) | C14: 1 | D14: U | E14: 2164 | F14: 2164 | G14: 10 | H14: 216.4
B15: Démarreur électronique 2.2 kW | C15: 1 | D15: U | E15: 87648 | F15: 87648 | G15: 10 | H15: 8764.8
B16: Matériels de raccordements | C16: 1 | D16: ens | E16: 399000 | F16: 399000 | G16: 20 | H16: 19950
B17: BOX batteries et SOPPORTES | C17: 1 | D17: ens | E17: 200000 | F17: 200000 | G17: 20 | H17: 10000
B18: Frais d'installation | C18: 1 | D18: ens | E18: 500000 | F18: 500000
B19: Ampoules led | C19: 4 | D19: U | E19: 2500 | F19: 10000 | G19: 4 | H19: 2500
B20: Ensacheuses | C20: 2 | D20: U | E20: 20000 | F20: 40000 | G20: 10 | H20: 4000
B21: Presse à huile | C21: 1 | D21: U | E21: 2033742 | F21: 2033742 | G21: 15 | H21: 135582.8
B22: Projecteur led | C22: 1 | D22: U | E22: 40000 | F22: 40000 | G22: 8 | H22: 5000
B23: Moulin Solaire + variateur | C23: 1 | D23: U | E23: 700000 | F23: 700000 | G23: 15 | H23: 46666.66667
B24: Coor control | C24: 1 | D24: U | E24: 694127 | F24: 694127
B25: Transport système solaire + presse | C25: 1 | D25: U | E25: 550000 | F25: 550000
B26: local (batiment) | C26: 1 | E26: 1000000 | F26: 1000000 | G26: 30 | H26: 33333.33333
B27: Total | F27: =SUM(F9:F26) -> 9727129 | H27: =SUM(H9:H26) -> 635818.3429
